[Event "*** Titled Tuesday Blitz"]
[Site "Chess.com"]
[Date "2020.12.01"]
[Round "3"]
[White "temus_galaktionov"]
[Black "champ2005"]
[Result "1-0"]
[WhiteElo "2704"]
[BlackElo "3003"]
[TimeControl "180+1"]
[EndTime "10:28:24 PST"]
[Termination "temus_galaktionov won on time"]

1. d4 {[%clk 0:02:57.6]} 1... Nf6 {[%clk 0:03:00.3]} 2. Nf3 {[%clk 0:02:58.5]}
2... g6 {[%clk 0:03:00.4]} 3. c4 {[%clk 0:02:58.5]} 3... Bg7 {[%clk 0:02:59.8]}
4. Nc3 {[%clk 0:02:59.4]} 4... O-O {[%clk 0:03:00.2]} 5. e4 {[%clk 0:02:59]}
5... d6 {[%clk 0:03:00.5]} 6. Be2 {[%clk 0:02:58.8]} 6... Qe8 {[%clk 0:03:00.8]}
7. O-O {[%clk 0:02:57]} 7... e5 {[%clk 0:03:01.1]} 8. dxe5 {[%clk 0:02:39.3]}
8... dxe5 {[%clk 0:03:02]} 9. Be3 {[%clk 0:02:36.9]} 9... Na6 {[%clk 0:03:00.4]}
10. a3 {[%clk 0:02:29]} 10... Bg4 {[%clk 0:02:52.8]} 11. b4 {[%clk 0:02:23]}
11... c6 {[%clk 0:02:47.5]} 12. c5 {[%clk 0:02:03.4]} 12... Nc7 {[%clk
0:02:37.7]} 13. Nd2 {[%clk 0:02:02.8]} 13... Bxe2 {[%clk 0:02:36.6]} 14. Qxe2
{[%clk 0:02:03.7]} 14... Nh5 {[%clk 0:02:31.5]} 15. Nc4 {[%clk 0:02:00.5]} 15...
Ne6 {[%clk 0:02:31.7]} 16. Rad1 {[%clk 0:01:39.2]} 16... Qe7 {[%clk 0:02:14.8]}
17. Qa2 {[%clk 0:01:33.3]} 17... Nhf4 {[%clk 0:01:59.2]} 18. Rd6 {[%clk
0:01:30.8]} 18... Nd4 {[%clk 0:01:50.6]} 19. Rd1 {[%clk 0:01:29.8]} 19... Nfe6
{[%clk 0:01:49.4]} 20. Ne2 {[%clk 0:01:24.1]} 20... Kh8 {[%clk 0:01:45.3]} 21.
Nxd4 {[%clk 0:01:20.4]} 21... exd4 {[%clk 0:01:45.5]} 22. Bd2 {[%clk 0:01:15.6]}
22... Rae8 {[%clk 0:01:33.6]} 23. Re1 {[%clk 0:01:14.1]} 23... Nc7 {[%clk
0:01:09.5]} 24. e5 {[%clk 0:01:13.4]} 24... Nb5 {[%clk 0:01:06.5]} 25. f4 {[%clk
0:00:54.3]} 25... Nxd6 {[%clk 0:01:05.1]} 26. Nxd6 {[%clk 0:00:54.1]} 26... Rd8
{[%clk 0:01:05]} 27. Qc4 {[%clk 0:00:53.2]} 27... Qe6 {[%clk 0:00:57.8]} 28.
Qxe6 {[%clk 0:00:48.7]} 28... fxe6 {[%clk 0:00:58.7]} 29. Nxb7 {[%clk
0:00:48.3]} 29... Rd5 {[%clk 0:00:57.9]} 30. Na5 {[%clk 0:00:46.5]} 30... Rc8
{[%clk 0:00:57.1]} 31. Kf2 {[%clk 0:00:45.9]} 31... Kg8 {[%clk 0:00:16.3]} 32.
Kf3 {[%clk 0:00:45.3]} 32... g5 {[%clk 0:00:14.6]} 33. g3 {[%clk 0:00:44.7]}
33... d3 {[%clk 0:00:15]} 34. Ke4 {[%clk 0:00:44.3]} 34... Kf7 {[%clk 0:00:13]}
35. Re3 {[%clk 0:00:41.4]} 35... Ke8 {[%clk 0:00:08.8]} 36. Nb7 {[%clk
0:00:38.1]} 36... Kd7 {[%clk 0:00:08.1]} 37. Nd6 {[%clk 0:00:37.4]} 37... Rf8
{[%clk 0:00:06.9]} 38. Re1 {[%clk 0:00:34.2]} 38... h5 {[%clk 0:00:05.1]} 39.
Nc4 {[%clk 0:00:29.4]} 39... Kc7 {[%clk 0:00:03.3]} 40. Rg1 {[%clk 0:00:21.8]}
40... Kd7 {[%clk 0:00:03.1]} 41. Nd6 {[%clk 0:00:21.4]} 1-0

[Event "*** Titled Tuesday Blitz"]
[Site "Chess.com"]
[Date "2020.12.01"]
[Round "3"]
[White "mbojan"]
[Black "ExtremeLearner"]
[Result "1-0"]
[WhiteElo "2674"]
[BlackElo "2410"]
[TimeControl "180+1"]
[EndTime "10:28:26 PST"]
[Termination "mbojan won by resignation"]

1. b4 {[%clk 0:03:00.9]} 1... e6 {[%clk 0:02:58.4]} 2. Bb2 {[%clk 0:03:00.5]}
2... d5 {[%clk 0:02:58.8]} 3. e3 {[%clk 0:02:57.9]} 3... Nf6 {[%clk 0:02:59.1]}
4. b5 {[%clk 0:02:57.4]} 4... c5 {[%clk 0:02:57.9]} 5. bxc6 {[%clk 0:02:56.9]}
5... Nxc6 {[%clk 0:02:58]} 6. Nf3 {[%clk 0:02:56.6]} 6... Be7 {[%clk 0:02:58.5]}
7. c4 {[%clk 0:02:56.7]} 7... O-O {[%clk 0:02:58.2]} 8. cxd5 {[%clk 0:02:56.4]}
8... exd5 {[%clk 0:02:55]} 9. Be2 {[%clk 0:02:55]} 9... Bg4 {[%clk 0:02:50.2]}
10. d4 {[%clk 0:02:53.8]} 10... Rc8 {[%clk 0:02:49.1]} 11. O-O {[%clk
0:02:52.4]} 11... Ne4 {[%clk 0:02:46.7]} 12. Nbd2 {[%clk 0:02:50.3]} 12... Nxd2
{[%clk 0:02:44.4]} 13. Nxd2 {[%clk 0:02:43]} 13... Bxe2 {[%clk 0:02:42.8]} 14.
Qxe2 {[%clk 0:02:43.9]} 14... Nb4 {[%clk 0:02:36.8]} 15. Rfc1 {[%clk 0:02:38.2]}
15... Nc2 {[%clk 0:02:29.1]} 16. Rab1 {[%clk 0:02:36.5]} 16... Qa5 {[%clk
0:02:28.7]} 17. Nb3 {[%clk 0:02:05.3]} 17... Qxa2 {[%clk 0:02:22.2]} 18. Nc5
{[%clk 0:02:04.6]} 18... Bxc5 {[%clk 0:01:58.7]} 19. dxc5 {[%clk 0:01:47.6]}
19... Rxc5 {[%clk 0:01:58.6]} 20. Qg4 {[%clk 0:01:02.6]} 20... f6 {[%clk
0:01:45.7]} 21. h4 {[%clk 0:00:55]} 21... Nxe3 {[%clk 0:01:31.6]} 22. Qe6+
{[%clk 0:00:54]} 22... Kh8 {[%clk 0:01:31.3]} 23. Qxe3 {[%clk 0:00:54.2]} 23...
Rxc1+ {[%clk 0:01:30.7]} 24. Qxc1 {[%clk 0:00:54.4]} 24... Qc4 {[%clk
0:01:23.2]} 25. Qd2 {[%clk 0:00:52.6]} 25... b5 {[%clk 0:01:18.2]} 26. Bd4
{[%clk 0:00:51.3]} 26... a6 {[%clk 0:01:15.4]} 27. h5 {[%clk 0:00:49.4]} 27...
h6 {[%clk 0:01:12.3]} 28. Ra1 {[%clk 0:00:47.5]} 28... Re8 {[%clk 0:01:08.3]}
29. Rxa6 {[%clk 0:00:31.9]} 29... Re2 {[%clk 0:01:06.1]} 30. Ra8+ {[%clk
0:00:31.5]} 30... Kh7 {[%clk 0:01:06.2]} 31. Qf4 {[%clk 0:00:32.2]} 31... Re1+
{[%clk 0:00:39.4]} 32. Kh2 {[%clk 0:00:31.7]} 32... Qd3 {[%clk 0:00:30.1]} 33.
Qb8 {[%clk 0:00:14.1]} 33... Rh1+ {[%clk 0:00:30.2]} 34. Kxh1 {[%clk 0:00:14.4]}
34... Qd1+ {[%clk 0:00:30.3]} 35. Kh2 {[%clk 0:00:15.1]} 35... Qxh5+ {[%clk
0:00:31.2]} 36. Kg3 {[%clk 0:00:15.8]} 36... Qg5+ {[%clk 0:00:29.4]} 37. Kf3
{[%clk 0:00:16.4]} 37... Qf5+ {[%clk 0:00:28.3]} 38. Qf4 {[%clk 0:00:15.9]}
38... Qd3+ {[%clk 0:00:28.7]} 39. Qe3 {[%clk 0:00:16.2]} 39... Qf5+ {[%clk
0:00:28]} 40. Kg3 {[%clk 0:00:16.8]} 40... h5 {[%clk 0:00:27.1]} 41. Kh2 {[%clk
0:00:16]} 41... Qg4 {[%clk 0:00:25.1]} 42. Ba1 {[%clk 0:00:12.9]} 42... Qh4+
{[%clk 0:00:24.4]} 43. Qh3 {[%clk 0:00:13.1]} 43... Qf4+ {[%clk 0:00:24.8]} 44.
Qg3 {[%clk 0:00:13.6]} 44... Qe4 {[%clk 0:00:22.4]} 45. Ra7 {[%clk 0:00:13.4]}
45... Qg4 {[%clk 0:00:19.7]} 46. Qxg4 {[%clk 0:00:13.5]} 46... hxg4 {[%clk
0:00:20.6]} 47. Kg3 {[%clk 0:00:14.2]} 47... Kg6 {[%clk 0:00:20.9]} 48. Kxg4
{[%clk 0:00:14.6]} 1-0

[Event "*** Titled Tuesday Blitz"]
[Site "Chess.com"]
[Date "2020.12.01"]
[Round "3"]
[White "PriSachu"]
[Black "lucachess49"]
[Result "0-1"]
[WhiteElo "2533"]
[BlackElo "2355"]
[TimeControl "180+1"]
[EndTime "10:28:26 PST"]
[Termination "lucachess49 won on time"]

1. e4 {[%clk 0:02:58.9]} 1... e5 {[%clk 0:02:59.7]} 2. Nf3 {[%clk 0:02:57.5]}
2... Nc6 {[%clk 0:02:59.8]} 3. Bb5 {[%clk 0:02:55.3]} 3... a6 {[%clk 0:03:00.2]}
4. Ba4 {[%clk 0:02:54.7]} 4... Nf6 {[%clk 0:02:59.3]} 5. O-O {[%clk 0:02:53.9]}
5... Be7 {[%clk 0:02:59.1]} 6. Re1 {[%clk 0:02:53.9]} 6... b5 {[%clk 0:02:58.4]}
7. Bb3 {[%clk 0:02:54.5]} 7... d6 {[%clk 0:02:59.3]} 8. c3 {[%clk 0:02:54.6]}
8... O-O {[%clk 0:02:59.7]} 9. h3 {[%clk 0:02:55.2]} 9... Na5 {[%clk 0:02:59.5]}
10. Bc2 {[%clk 0:02:55.3]} 10... c5 {[%clk 0:03:00.4]} 11. d4 {[%clk 0:02:55.5]}
11... Qc7 {[%clk 0:03:01.1]} 12. Nbd2 {[%clk 0:02:55.1]} 12... Bd7 {[%clk
0:03:00.8]} 13. Nf1 {[%clk 0:02:51.7]} 13... Nc4 {[%clk 0:02:57.5]} 14. b3
{[%clk 0:02:48.6]} 14... Nb6 {[%clk 0:02:57.5]} 15. d5 {[%clk 0:02:45.8]} 15...
c4 {[%clk 0:02:53.5]} 16. Ba3 {[%clk 0:01:55.2]} 16... Rfc8 {[%clk 0:02:06.5]}
17. Nxe5 {[%clk 0:01:45.3]} 17... dxe5 {[%clk 0:01:41.4]} 18. d6 {[%clk
0:01:45.2]} 18... Bxd6 {[%clk 0:01:15]} 19. Bxd6 {[%clk 0:01:37.7]} 19... Qc6
{[%clk 0:01:14]} 20. Bxe5 {[%clk 0:01:37.4]} 20... Re8 {[%clk 0:01:08.2]} 21.
Bd4 {[%clk 0:01:23.6]} 21... Rad8 {[%clk 0:00:45.4]} 22. e5 {[%clk 0:01:17.5]}
22... Nfd5 {[%clk 0:00:42.4]} 23. Qh5 {[%clk 0:01:14]} 23... h6 {[%clk
0:00:41.8]} 24. Be4 {[%clk 0:01:06.1]} 24... Be6 {[%clk 0:00:29.7]} 25. Rad1
{[%clk 0:01:01.1]} 25... Qc7 {[%clk 0:00:22.4]} 26. Ng3 {[%clk 0:00:54.2]} 26...
cxb3 {[%clk 0:00:20.5]} 27. axb3 {[%clk 0:00:52.7]} 27... Nxc3 {[%clk
0:00:18.1]} 28. Rd3 {[%clk 0:00:23.6]} 28... Nxe4 {[%clk 0:00:17.2]} 29. Nxe4
{[%clk 0:00:24.5]} 29... Nd5 {[%clk 0:00:13.8]} 30. Rg3 {[%clk 0:00:22.3]} 30...
Kh8 {[%clk 0:00:04.9]} 31. Ng5 {[%clk 0:00:16]} 31... Nf4 {[%clk 0:00:03.2]} 32.
Qh4 {[%clk 0:00:14.4]} 32... Rxd4 {[%clk 0:00:03.2]} 33. Re4 {[%clk 0:00:06.5]}
33... Rxe4 {[%clk 0:00:02.7]} 34. Nxe4 {[%clk 0:00:07.4]} 34... Qc1+ {[%clk
0:00:02.2]} 35. Kh2 {[%clk 0:00:07.1]} 35... Ne2 {[%clk 0:00:02.9]} 0-1

[Event "*** Titled Tuesday Blitz"]
[Site "Chess.com"]
[Date "2020.12.01"]
[Round "3"]
[White "Misticpikachu"]
[Black "Fh2411"]
[Result "0-1"]
[WhiteElo "2347"]
[BlackElo "2560"]
[TimeControl "180+1"]
[EndTime "10:28:30 PST"]
[Termination "Fh2411 won by checkmate"]

1. c4 {[%clk 0:03:00.9]} 1... c6 {[%clk 0:02:25.9]} 2. Nf3 {[%clk 0:03:00.6]}
2... d5 {[%clk 0:02:26.8]} 3. e3 {[%clk 0:03:01.1]} 3... Nf6 {[%clk 0:02:27.1]}
4. Nc3 {[%clk 0:03:01.6]} 4... a6 {[%clk 0:02:24.6]} 5. b3 {[%clk 0:03:01.5]}
5... Bg4 {[%clk 0:02:24.6]} 6. Bb2 {[%clk 0:03:01.6]} 6... e6 {[%clk 0:02:25.1]}
7. Rc1 {[%clk 0:03:01.7]} 7... Nbd7 {[%clk 0:02:25.4]} 8. Be2 {[%clk 0:03:02]}
8... Bd6 {[%clk 0:02:24.9]} 9. O-O {[%clk 0:03:02.9]} 9... O-O {[%clk
0:02:24.7]} 10. Qc2 {[%clk 0:03:01.2]} 10... Bf5 {[%clk 0:02:22.5]} 11. d3
{[%clk 0:03:01]} 11... Bg6 {[%clk 0:02:22.3]} 12. e4 {[%clk 0:02:57]} 12... dxe4
{[%clk 0:02:20.6]} 13. dxe4 {[%clk 0:02:57.9]} 13... e5 {[%clk 0:02:20.7]} 14.
Rfd1 {[%clk 0:02:56.8]} 14... Qe7 {[%clk 0:02:21]} 15. Qd2 {[%clk 0:02:47.4]}
15... Bb4 {[%clk 0:02:14.1]} 16. Bd3 {[%clk 0:02:35.9]} 16... Rfd8 {[%clk
0:02:11.3]} 17. Qe3 {[%clk 0:02:30.7]} 17... Nf8 {[%clk 0:01:50.3]} 18. Bc2
{[%clk 0:02:22.9]} 18... N6d7 {[%clk 0:01:48.3]} 19. Na4 {[%clk 0:02:20.4]}
19... Bh5 {[%clk 0:01:27.8]} 20. Bd3 {[%clk 0:02:02.8]} 20... Nc5 {[%clk
0:01:14.3]} 21. Nxc5 {[%clk 0:01:50.1]} 21... Bxc5 {[%clk 0:01:13.9]} 22. Qe2
{[%clk 0:01:44.8]} 22... f6 {[%clk 0:01:12.2]} 23. Bc2 {[%clk 0:01:39.8]} 23...
Ne6 {[%clk 0:01:11.7]} 24. Rxd8+ {[%clk 0:01:37.1]} 24... Rxd8 {[%clk
0:01:10.4]} 25. g3 {[%clk 0:01:36.3]} 25... Bd4 {[%clk 0:01:05.2]} 26. Bd1
{[%clk 0:01:24.5]} 26... Bxb2 {[%clk 0:01:02.6]} 27. Qxb2 {[%clk 0:01:24.5]}
27... Rxd1+ {[%clk 0:01:02.8]} 28. Rxd1 {[%clk 0:01:25.4]} 28... Bxf3 {[%clk
0:01:02.8]} 29. Rd3 {[%clk 0:01:25.6]} 29... Bxe4 {[%clk 0:01:01.2]} 30. Rd1
{[%clk 0:01:22.5]} 30... Nd4 {[%clk 0:00:58.3]} 31. b4 {[%clk 0:01:14.8]} 31...
Qd7 {[%clk 0:00:48.1]} 32. Kf1 {[%clk 0:01:09.9]} 32... Qg4 {[%clk 0:00:40.6]}
33. Rxd4 {[%clk 0:00:38]} 33... exd4 {[%clk 0:00:38.7]} 34. Ke1 {[%clk
0:00:38.9]} 34... Bd3 {[%clk 0:00:30.3]} 35. Qd2 {[%clk 0:00:38.6]} 35... Qe4+
{[%clk 0:00:25.3]} 36. Kd1 {[%clk 0:00:36.1]} 36... Qh1+ {[%clk 0:00:24.9]} 37.
Qe1 {[%clk 0:00:34.7]} 37... Qxe1+ {[%clk 0:00:25.3]} 38. Kxe1 {[%clk
0:00:35.6]} 38... Bxc4 {[%clk 0:00:25.6]} 39. Kd2 {[%clk 0:00:35.8]} 39... Kf7
{[%clk 0:00:25.8]} 40. a3 {[%clk 0:00:36.1]} 40... Ke6 {[%clk 0:00:26.3]} 41. f4
{[%clk 0:00:36.9]} 41... Kd5 {[%clk 0:00:26.6]} 42. Kc2 {[%clk 0:00:35.7]} 42...
b6 {[%clk 0:00:24.7]} 43. Kd2 {[%clk 0:00:36.6]} 43... c5 {[%clk 0:00:24.7]} 44.
b5 {[%clk 0:00:36.5]} 44... axb5 {[%clk 0:00:21.9]} 45. h3 {[%clk 0:00:36.8]}
45... Ke4 {[%clk 0:00:21.4]} 46. h4 {[%clk 0:00:37.7]} 46... Bb3 {[%clk
0:00:21.3]} 47. a4 {[%clk 0:00:38]} 47... bxa4 {[%clk 0:00:21.1]} 48. Kc1 {[%clk
0:00:38.2]} 48... a3 {[%clk 0:00:20.6]} 49. h5 {[%clk 0:00:38.7]} 49... c4
{[%clk 0:00:20.8]} 50. h6 {[%clk 0:00:39.6]} 50... g6 {[%clk 0:00:20.6]} 51. f5
{[%clk 0:00:39.2]} 51... gxf5 {[%clk 0:00:20.5]} 52. g4 {[%clk 0:00:39.6]} 52...
c3 {[%clk 0:00:17.3]} 53. gxf5 {[%clk 0:00:33.6]} 53... d3 {[%clk 0:00:14.2]}
54. Kb1 {[%clk 0:00:33.6]} 54... d2 {[%clk 0:00:13.9]} 55. Ka1 {[%clk
0:00:33.8]} 55... d1=Q# {[%clk 0:00:13.1]} 0-1

[Event "*** Titled Tuesday Blitz"]
[Site "Chess.com"]
[Date "2020.12.01"]
[Round "3"]
[White "Kovalchuk94"]
[Black "Ladislav1969"]
[Result "1-0"]
[WhiteElo "2561"]
[BlackElo "2347"]
[TimeControl "180+1"]
[EndTime "10:28:31 PST"]
[Termination "Kovalchuk94 won by resignation"]

1. e4 {[%clk 0:02:52.2]} 1... c5 {[%clk 0:02:58.5]} 2. Nf3 {[%clk 0:02:51.7]}
2... e6 {[%clk 0:02:59.1]} 3. d4 {[%clk 0:02:51.6]} 3... cxd4 {[%clk 0:03:00]}
4. Nxd4 {[%clk 0:02:52.5]} 4... a6 {[%clk 0:03:00.6]} 5. Bd3 {[%clk 0:02:52.5]}
5... Nc6 {[%clk 0:02:59.8]} 6. Nxc6 {[%clk 0:02:46.8]} 6... dxc6 {[%clk
0:02:59.5]} 7. O-O {[%clk 0:02:36.6]} 7... e5 {[%clk 0:03:00]} 8. Nd2 {[%clk
0:02:32.6]} 8... Nf6 {[%clk 0:02:56.3]} 9. Nc4 {[%clk 0:02:32.5]} 9... Qc7
{[%clk 0:02:54.2]} 10. Be3 {[%clk 0:02:32.2]} 10... b5 {[%clk 0:02:42.1]} 11.
Nb6 {[%clk 0:02:29.2]} 11... Rb8 {[%clk 0:02:40.3]} 12. Nxc8 {[%clk 0:02:29.6]}
12... Rxc8 {[%clk 0:02:39.2]} 13. a4 {[%clk 0:02:26.2]} 13... c5 {[%clk
0:02:20.5]} 14. axb5 {[%clk 0:02:17.3]} 14... c4 {[%clk 0:02:20.6]} 15. Be2
{[%clk 0:02:15.8]} 15... axb5 {[%clk 0:02:19.7]} 16. b3 {[%clk 0:01:11.6]} 16...
Bc5 {[%clk 0:02:18.2]} 17. Bxc5 {[%clk 0:00:49.5]} 17... Qxc5 {[%clk 0:02:17.5]}
18. bxc4 {[%clk 0:00:49.7]} 18... bxc4 {[%clk 0:02:16.9]} 19. Ra4 {[%clk
0:00:49.6]} 19... Qb5 {[%clk 0:02:07.9]} 20. Qa1 {[%clk 0:00:44.2]} 20... O-O
{[%clk 0:01:48.6]} 21. Rb1 {[%clk 0:00:36]} 21... Qe8 {[%clk 0:01:14.9]} 22.
Bxc4 {[%clk 0:00:30.1]} 22... Nxe4 {[%clk 0:01:14.9]} 23. Re1 {[%clk 0:00:20.2]}
23... Nd6 {[%clk 0:01:10.6]} 24. Rxe5 {[%clk 0:00:15]} 24... Qc6 {[%clk
0:01:05.3]} 25. Bb3 {[%clk 0:00:14.3]} 25... Rfe8 {[%clk 0:00:48.8]} 26. Rf4
{[%clk 0:00:13.3]} 26... Ra8 {[%clk 0:00:25.4]} 27. Rxe8+ {[%clk 0:00:10.9]}
27... Qxe8 {[%clk 0:00:23.9]} 28. Qd1 {[%clk 0:00:09.6]} 28... Rd8 {[%clk
0:00:19.2]} 29. Rd4 {[%clk 0:00:09]} 29... Qe5 {[%clk 0:00:18]} 30. h3 {[%clk
0:00:08.4]} 30... g6 {[%clk 0:00:16.4]} 31. Rd5 {[%clk 0:00:08.4]} 31... Qf4
{[%clk 0:00:15.1]} 32. c4 {[%clk 0:00:08.3]} 32... Rb8 {[%clk 0:00:08.8]} 33.
Rxd6 {[%clk 0:00:06.2]} 33... Rxb3 {[%clk 0:00:05.7]} 34. Rd8+ {[%clk
0:00:06.3]} 34... Kg7 {[%clk 0:00:05]} 35. Qxb3 {[%clk 0:00:06.5]} 35... Qc1+
{[%clk 0:00:04.9]} 36. Rd1 {[%clk 0:00:06.6]} 36... Qf4 {[%clk 0:00:02.9]} 37.
Qd3 {[%clk 0:00:06.4]} 37... f6 {[%clk 0:00:03.8]} 38. Qd4 {[%clk 0:00:06.8]}
38... Kh6 {[%clk 0:00:04.1]} 39. Qxf4+ {[%clk 0:00:06]} 39... g5 {[%clk
0:00:04]} 40. Qxf6+ {[%clk 0:00:06.2]} 1-0

[Event "*** Titled Tuesday Blitz"]
[Site "Chess.com"]
[Date "2020.12.01"]
[Round "3"]
[White "RD4ever"]
[Black "Volodar_Murzin"]
[Result "1-0"]
[WhiteElo "2842"]
[BlackElo "2593"]
[TimeControl "180+1"]
[EndTime "10:28:32 PST"]
[Termination "RD4ever won by resignation"]

1. d4 {[%clk 0:03:00.9]} 1... Nf6 {[%clk 0:02:59.5]} 2. c4 {[%clk 0:03:00.8]}
2... g6 {[%clk 0:03:00.1]} 3. Nc3 {[%clk 0:03:00.7]} 3... Bg7 {[%clk 0:03:00.7]}
4. e4 {[%clk 0:03:00.4]} 4... O-O {[%clk 0:03:00.1]} 5. Bg5 {[%clk 0:02:53.3]}
5... d6 {[%clk 0:02:59.4]} 6. Qd2 {[%clk 0:02:53.4]} 6... Nbd7 {[%clk
0:02:56.1]} 7. Be2 {[%clk 0:02:41.9]} 7... e5 {[%clk 0:02:55]} 8. d5 {[%clk
0:02:37.9]} 8... Nc5 {[%clk 0:02:50.7]} 9. f3 {[%clk 0:02:37.6]} 9... h6 {[%clk
0:02:48.7]} 10. Be3 {[%clk 0:02:35.1]} 10... a5 {[%clk 0:02:47.1]} 11. h4 {[%clk
0:02:33.2]} 11... h5 {[%clk 0:02:25.3]} 12. Nh3 {[%clk 0:02:27]} 12... Nh7
{[%clk 0:02:21.4]} 13. g4 {[%clk 0:02:16.5]} 13... hxg4 {[%clk 0:02:03.1]} 14.
fxg4 {[%clk 0:02:17.4]} 14... Bd7 {[%clk 0:02:02.7]} 15. O-O-O {[%clk
0:02:11.1]} 15... Bf6 {[%clk 0:01:46.2]} 16. g5 {[%clk 0:02:01.3]} 16... Be7
{[%clk 0:01:39.6]} 17. Rdg1 {[%clk 0:01:45.1]} 17... Kg7 {[%clk 0:01:29.4]} 18.
h5 {[%clk 0:01:40.5]} 18... Rh8 {[%clk 0:01:26.6]} 19. Nf2 {[%clk 0:01:27.5]}
19... Nf8 {[%clk 0:01:20]} 20. h6+ {[%clk 0:01:22.3]} 20... Kg8 {[%clk
0:01:16.4]} 21. Bg4 {[%clk 0:01:02.1]} 21... Nh7 {[%clk 0:01:14.1]} 22. Bxd7
{[%clk 0:01:00.8]} 22... Qxd7 {[%clk 0:01:12.1]} 23. Kb1 {[%clk 0:01:00.9]}
23... a4 {[%clk 0:00:59.6]} 24. Ng4 {[%clk 0:00:51.7]} 24... Qd8 {[%clk
0:00:50.2]} 25. Bxc5 {[%clk 0:00:48.1]} 25... dxc5 {[%clk 0:00:48.4]} 26. Nxe5
{[%clk 0:00:48.1]} 26... Bxg5 {[%clk 0:00:47.7]} 27. Qg2 {[%clk 0:00:42]} 27...
Qf6 {[%clk 0:00:40]} 28. Ng4 {[%clk 0:00:40.1]} 28... Qd4 {[%clk 0:00:38.3]} 29.
Qe2 {[%clk 0:00:33.4]} 29... Qd2 {[%clk 0:00:27.2]} 30. Qxd2 {[%clk 0:00:28.9]}
30... Bxd2 {[%clk 0:00:28.1]} 31. Nb5 {[%clk 0:00:29.8]} 31... Rc8 {[%clk
0:00:21.7]} 32. e5 {[%clk 0:00:30.1]} 32... Bg5 {[%clk 0:00:13.8]} 33. Rf1
{[%clk 0:00:28.5]} 33... Nf8 {[%clk 0:00:12.4]} 34. Rh3 {[%clk 0:00:25.1]} 34...
Rh7 {[%clk 0:00:12]} 35. Kc2 {[%clk 0:00:24.5]} 35... Kh8 {[%clk 0:00:06.5]} 36.
Nc3 {[%clk 0:00:24.7]} 36... Re8 {[%clk 0:00:06]} 37. Ne4 {[%clk 0:00:24.3]}
37... f5 {[%clk 0:00:05.7]} 38. Nxg5 {[%clk 0:00:19.7]} 38... fxg4 {[%clk
0:00:06]} 39. Nxh7 {[%clk 0:00:20.1]} 39... gxh3 {[%clk 0:00:04.7]} 40. Nxf8
{[%clk 0:00:20]} 40... h2 {[%clk 0:00:05.5]} 41. Nxg6+ {[%clk 0:00:20.2]} 41...
Kh7 {[%clk 0:00:06.1]} 42. Nh4 {[%clk 0:00:16.1]} 42... Rxe5 {[%clk 0:00:06.7]}
43. Nf3 {[%clk 0:00:16.4]} 43... Rf5 {[%clk 0:00:06.7]} 44. Nxh2 {[%clk
0:00:14.5]} 44... Rxf1 {[%clk 0:00:06.9]} 45. Nxf1 {[%clk 0:00:15.4]} 1-0

[Event "*** Titled Tuesday Blitz"]
[Site "Chess.com"]
[Date "2020.12.01"]
[Round "3"]
[White "Gulkov_Igor"]
[Black "Gabrielian_Artur"]
[Result "1/2-1/2"]
[WhiteElo "2497"]
[BlackElo "2756"]
[TimeControl "180+1"]
[EndTime "10:28:32 PST"]
[Termination "Game drawn by repetition"]

1. Nf3 {[%clk 0:03:00.9]} 1... c5 {[%clk 0:02:58.9]} 2. c4 {[%clk 0:03:00.5]}
2... Nc6 {[%clk 0:02:58.7]} 3. d4 {[%clk 0:03:00.1]} 3... cxd4 {[%clk 0:02:58]}
4. Nxd4 {[%clk 0:03:00.1]} 4... Nf6 {[%clk 0:02:58.3]} 5. Nc3 {[%clk 0:02:59.7]}
5... e6 {[%clk 0:02:58.3]} 6. a3 {[%clk 0:02:56.9]} 6... d5 {[%clk 0:02:57.7]}
7. cxd5 {[%clk 0:02:56.2]} 7... exd5 {[%clk 0:02:58.1]} 8. g3 {[%clk 0:02:54.8]}
8... Bc5 {[%clk 0:02:56.3]} 9. Nxc6 {[%clk 0:02:48.9]} 9... bxc6 {[%clk
0:02:56.2]} 10. Bg2 {[%clk 0:02:49.1]} 10... O-O {[%clk 0:02:55.8]} 11. O-O
{[%clk 0:02:49]} 11... Re8 {[%clk 0:02:55.9]} 12. Bg5 {[%clk 0:02:42.2]} 12...
h6 {[%clk 0:02:55.6]} 13. Bxf6 {[%clk 0:02:40.8]} 13... Qxf6 {[%clk 0:02:56.5]}
14. Rc1 {[%clk 0:02:40.3]} 14... Ba6 {[%clk 0:02:35.2]} 15. Bf3 {[%clk
0:02:14.7]} 15... Bb6 {[%clk 0:02:19.1]} 16. Na4 {[%clk 0:02:08.2]} 16... Re6
{[%clk 0:02:02.5]} 17. b4 {[%clk 0:02:04.8]} 17... Rae8 {[%clk 0:02:00.9]} 18.
Rc2 {[%clk 0:02:03.6]} 18... Bc4 {[%clk 0:01:50.9]} 19. Rxc4 {[%clk 0:01:17.8]}
19... dxc4 {[%clk 0:01:50.1]} 20. Qc2 {[%clk 0:01:18.4]} 20... Qd4 {[%clk
0:01:42.2]} 21. Kg2 {[%clk 0:01:12]} 21... Rd6 {[%clk 0:01:25.7]} 22. Nb2 {[%clk
0:00:53.3]} 22... c3 {[%clk 0:01:15.4]} 23. Na4 {[%clk 0:00:46.9]} 23... a5
{[%clk 0:00:57.1]} 24. Qxc3 {[%clk 0:00:41.7]} 24... Qxc3 {[%clk 0:00:55.8]} 25.
Nxc3 {[%clk 0:00:41.4]} 25... axb4 {[%clk 0:00:56.2]} 26. axb4 {[%clk
0:00:41.3]} 26... Rb8 {[%clk 0:00:51.4]} 27. Rc1 {[%clk 0:00:37]} 27... Bd4
{[%clk 0:00:47.4]} 28. Ne4 {[%clk 0:00:35.2]} 28... Re6 {[%clk 0:00:47.5]} 29.
Rc4 {[%clk 0:00:34.3]} 29... Bb6 {[%clk 0:00:45.5]} 30. Nd2 {[%clk 0:00:31.5]}
30... Bd8 {[%clk 0:00:40.9]} 31. Nb3 {[%clk 0:00:30.6]} 31... Rd6 {[%clk
0:00:23]} 32. Nd4 {[%clk 0:00:29]} 32... Rxb4 {[%clk 0:00:19.2]} 33. Rxb4 {[%clk
0:00:26.3]} 33... c5 {[%clk 0:00:19.7]} 34. Rb8 {[%clk 0:00:24.3]} 34... cxd4
{[%clk 0:00:18.8]} 35. Be4 {[%clk 0:00:24.6]} 35... g6 {[%clk 0:00:18.6]} 36.
Bd3 {[%clk 0:00:24.7]} 36... Kg7 {[%clk 0:00:18.4]} 37. h4 {[%clk 0:00:25]}
37... Rd7 {[%clk 0:00:16.6]} 38. Rb5 {[%clk 0:00:23.4]} 38... Bf6 {[%clk
0:00:16.5]} 39. h5 {[%clk 0:00:23.5]} 39... g5 {[%clk 0:00:16.9]} 40. Bf5 {[%clk
0:00:23]} 40... Rc7 {[%clk 0:00:16.8]} 41. Bd3 {[%clk 0:00:23.2]} 41... Re7
{[%clk 0:00:16.6]} 42. Kf3 {[%clk 0:00:23.4]} 42... Rc7 {[%clk 0:00:15.3]} 43.
Rb6 {[%clk 0:00:23.5]} 43... Ra7 {[%clk 0:00:14.1]} 44. Kg4 {[%clk 0:00:23.1]}
44... Re7 {[%clk 0:00:13.2]} 45. Kf5 {[%clk 0:00:21.9]} 45... Re5+ {[%clk
0:00:12.8]} 46. Kg4 {[%clk 0:00:22.1]} 46... Re7 {[%clk 0:00:13]} 47. Kf5 {[%clk
0:00:22.4]} 47... Re5+ {[%clk 0:00:13.1]} 48. Kg4 {[%clk 0:00:22.7]} 48... Rc5
{[%clk 0:00:12.8]} 49. Kf3 {[%clk 0:00:22.6]} 49... Re5 {[%clk 0:00:12]} 50. Kg4
{[%clk 0:00:22.5]} 1/2-1/2